bitfinex/quotes_BTCUSD_20220211
["timestamp","ask_amount","ask_price","bid_price","bid_amount"]
[1644555289829,0.058025,43124.0,43123.0,0.08745804]
[1644555289830,0.00064726,43124.0,43123.0,0.08745804]
[1644555290033,0.00064726,43124.0,43123.0,0.13745804]
[1644555290229,0.00064726,43124.0,43123.0,0.18745804]
[1644555290830,0.0205909,43136.0,43133.0,0.07884413]
[1644555291027,0.1366129,43136.0,43133.0,0.07884413]
[1644555291226,0.04877647,43136.0,43133.0,0.12884413]
[1644555291427,0.04877647,43136.0,43135.0,0.0205909]
[1644555291829,0.3973947,43136.0,43133.0,0.12884413]
[1644555292231,0.04877647,43136.0,43133.0,0.12884413]
[1644555292433,0.058009,43136.0,43133.0,0.12884413]
[1644555292633,0.00064721,43138.0,43133.0,0.12884413]
[1644555293133,0.02,43144.0,43133.0,0.12884413]
[1644555293378,0.02,43144.0,43136.0,0.05800477]
[1644555293379,0.00064721,43138.0,43136.0,0.05800477]
[1644555294274,0.058003,43138.0,43136.0,0.05800477]
[1644555295876,0.11601,43141.0,43136.0,0.05800477]
[1644555295877,0.0006472,43139.0,43136.0,0.05800477]
[1644555296081,0.0006472,43139.0,43136.0,0.11600477]
[1644555296279,0.0006472,43139.0,43136.0,0.16600477]
[1644555296676,0.02,43144.0,43136.0,0.10800477]
[1644555296876,0.02,43144.0,43143.0,0.08899775]
[1644555297146,0.078005,43144.0,43143.0,0.13899775]
[1644555298343,0.078005,43144.0,43143.0,0.05]
[1644555298744,0.078005,43144.0,43136.0,0.05800477]
[1644555298945,0.07826741,43144.0,43136.0,0.15800477]
[1644555299144,0.07826741,43144.0,43137.0,0.33487714]
[1644555299345,0.00064719,43142.0,43137.0,0.33487714]
[1644555299546,0.058006,43141.0,43137.0,0.38487714]
[1644555299745,0.05826841,43141.0,43137.0,0.38487714]
[1644555300146,0.05478517,43141.0,43138.0,0.0873509]
[1644555300549,0.05543237,43141.0,43138.0,0.0873509]
[1644555301479,0.05478517,43141.0,43138.0,0.0873509]
[1644555303878,0.05478517,43141.0,43137.0,0.05]
[1644555304279,0.05478517,43141.0,43131.0,0.05801158]
[1644555304526,0.05478517,43141.0,43126.0,0.1226]
[1644555304728,0.32741363,43136.0,43130.0,0.26033681]
[1644555304926,0.28823121,43135.0,43130.0,0.26033681]
[1644555305127,0.34650662,43135.0,43130.0,0.26033681]
[1644555305427,0.33715384,43135.0,43132.0,0.07150582]
[1644555305629,0.33715384,43135.0,43132.0,0.12150582]
[1644555306427,0.33650662,43135.0,43132.0,0.12150582]
[1644555306629,0.60547284,43135.0,43132.0,0.12150582]
[1644555306827,0.32724163,43135.0,43132.0,0.12150582]
[1644555307228,0.32724163,43135.0,43132.0,0.17951672]
[1644555308482,0.32724163,43135.0,43132.0,0.20010762]
[1644555308781,0.05827541,43135.0,43132.0,0.20010762]
[1644555309581,0.05827541,43135.0,43132.0,0.22069852]
[1644555309782,0.05827541,43135.0,43132.0,0.20010762]
[1644555310582,0.04827541,43135.0,43132.0,0.20010762]
[1644555310785,0.04853784,43135.0,43132.0,0.20010762]
[1644555311392,0.04853784,43135.0,43132.0,0.1286018]
[1644555311586,0.04853784,43135.0,43132.0,0.0911818]
[1644555311885,0.058018,43133.0,43132.0,0.0205909]
[1644555312128,0.104318,43133.0,43132.0,0.0205909]
[1644555313528,0.38269788,43133.0,43132.0,0.0411818]
[1644555313728,0.38269788,43133.0,43132.0,0.0205909]
[1644555315429,0.104318,43133.0,43132.0,0.0205909]
[1644555315631,0.37771041,43133.0,43132.0,0.0411818]
[1644555315880,0.37771041,43133.0,43132.0,0.0205909]
[1644555316478,0.104318,43133.0,43132.0,0.0205909]
[1644555317578,0.104318,43133.0,43132.0,0.0411818]
[1644555317777,0.104318,43133.0,43132.0,0.0205909]
[1644555318578,0.058018,43133.0,43132.0,0.0705909]
[1644555318980,0.058018,43133.0,43132.0,0.0205909]
[1644555319380,0.11628443,43134.0,43132.0,0.0705909]
[1644555319628,0.05827243,43134.0,43132.0,0.14919243]
[1644555319827,0.05801,43134.0,43132.0,0.07860153]
[1644555320229,0.05827243,43134.0,43132.0,0.07860153]
[1644555321331,0.04827243,43134.0,43132.0,0.07860153]
[1644555321730,0.04827243,43134.0,43132.0,0.14919243]
[1644555321931,0.04827243,43134.0,43132.0,0.12860153]
[1644555322128,0.32622151,43144.0,43134.0,0.0580041]
[1644555322129,0.11601,43139.0,43134.0,0.0580041]
[1644555322332,0.00060279,43135.0,43134.0,0.0580041]
[1644555323133,0.00026243,43141.0,43134.0,0.7394801]
[1644555323385,0.00026243,43137.0,43136.0,0.38147]
[1644555323583,0.00060278,43137.0,43136.0,0.48147]
[1644555323984,0.00060278,43137.0,43136.0,0.74370064]
[1644555324384,0.00026243,43142.0,43136.0,0.74370064]
[1644555324585,0.02,43144.0,43139.0,0.057991]
[1644555324586,0.00026243,43143.0,43139.0,0.057991]
[1644555324784,0.02,43144.0,43139.0,0.17397145]
[1644555324987,0.02,43144.0,43141.0,0.29506936]
[1644555325284,0.02,43144.0,43142.0,0.31620216]
[1644555325984,0.02,43144.0,43142.0,0.37418943]
[1644555326183,0.02,43144.0,43143.0,0.28835403]
[1644555326184,0.02026239,43144.0,43143.0,0.28835403]
[1644555326387,0.02,43144.0,43143.0,0.28835403]
[1644555326784,0.02,43144.0,43142.0,0.05798727]
[1644555327028,0.02026239,43144.0,43142.0,0.05798727]
[1644555327228,0.02,43144.0,43142.0,0.05798727]
[1644555327628,0.02,43144.0,43142.0,0.07857817]
[1644555327829,0.01815204,43144.0,43142.0,0.07857817]
[1644555328432,0.01841443,43144.0,43142.0,0.12857817]
[1644555328831,0.01841443,43144.0,43143.0,0.5]
[1644555329033,0.01815204,43144.0,43143.0,0.5]
[1644555329631,0.01815204,43144.0,43143.0,0.5205909]
[1644555330235,0.01815204,43144.0,43143.0,0.80341028]
[1644555331782,0.01815204,43144.0,43143.0,0.82400118]
[1644555331980,0.01815204,43144.0,43143.0,0.80341028]
[1644555333381,0.01815204,43144.0,43143.0,0.5205909]
[1644555335731,0.01815204,43144.0,43143.0,0.5411818]
[1644555335931,0.01815204,43144.0,43143.0,0.5205909]
[1644555337731,0.01815204,43144.0,43143.0,0.5411818]
[1644555337932,0.01815204,43144.0,43143.0,0.5205909]
[1644555339784,0.01815204,43144.0,43143.0,0.5411818]
[1644555339985,0.01815204,43144.0,43143.0,0.5205909]
[1644555341787,0.01815204,43144.0,43143.0,0.5411818]
[1644555342028,0.01815204,43144.0,43143.0,0.5205909]
[1644555342730,0.01815204,43144.0,43143.0,0.0205909]
[1644555343531,0.01815204,43144.0,43143.0,0.5205909]
[1644555343731,0.01815204,43144.0,43143.0,0.5411818]
[1644555344130,0.01815204,43144.0,43143.0,0.88609957]
[1644555344332,0.01815204,43144.0,43143.0,0.98609957]
[1644555344834,0.01815204,43144.0,43143.0,0.94491777]
[1644555345431,0.01815204,43144.0,43143.0,0.65]
[1644555345881,0.01815204,43144.0,43143.0,0.6705909]
[1644555347682,0.01815204,43144.0,43143.0,0.6911818]
[1644555347882,0.01815204,43144.0,43143.0,0.6705909]
[1644555348081,0.01815204,43144.0,43143.0,0.67048695]
[1644555349733,0.01815204,43144.0,43143.0,0.69107785]
[1644555349933,0.01815204,43144.0,43143.0,0.67048695]
[1644555350339,0.01815204,43144.0,43138.0,0.06902275]
[1644555350340,0.15,43139.0,43138.0,0.06902275]
[1644555350532,0.15,43139.0,43138.0,0.39250375]
[1644555350732,0.2,43139.0,43138.0,0.39250375]
[1644555351133,0.2,43139.0,43138.0,0.45049375]
[1644555351735,0.15,43139.0,43138.0,0.45049375]
[1644555352334,0.15,43139.0,43138.0,0.55049375]
[1644555353134,0.14764849,43139.0,43138.0,0.55049375]
[1644555353586,0.05825239,43140.0,43138.0,0.55049375]
[1644555353786,0.10825239,43140.0,43139.0,0.323481]
[1644555353986,0.20063849,43140.0,43139.0,0.323481]
[1644555354183,0.25063849,43140.0,43139.0,0.423481]
[1644555354583,0.25063849,43140.0,43139.0,0.323481]
[1644555358933,0.25063849,43140.0,43138.0,0.09049401]
[1644555359134,0.25090088,43140.0,43139.0,0.323481]
[1644555359336,0.25063849,43140.0,43139.0,0.323481]
[1644555359737,0.20063849,43140.0,43139.0,0.323481]
[1644555359937,0.19563849,43140.0,43139.0,0.323481]
[1644555360794,0.24563849,43140.0,43139.0,0.323481]
[1644555365533,0.05,43139.0,43138.0,0.06902275]
[1644555365735,0.05,43139.0,43138.0,0.49250375]
[1644555379736,0.19563849,43140.0,43138.0,0.49250375]
[1644555379939,0.19563849,43140.0,43139.0,0.323481]
[1644555380337,0.24563849,43140.0,43139.0,0.323481]
[1644555380938,0.24563849,43140.0,43139.0,0.32339606]
[1644555381340,0.23563849,43140.0,43139.0,0.32339606]
[1644555387435,0.18563849,43140.0,43139.0,0.32339606]
[1644555387637,0.18563849,43140.0,43139.0,0.42339606]
[1644555389440,0.58356839,43155.0,43141.0,0.9]
[1644555389640,0.58356839,43155.0,43142.0,0.70388946]
[1644555389641,0.00230333,43148.0,43142.0,0.70388946]
[1644555389841,0.00230333,43148.0,43142.0,0.80388946]
[1644555390040,0.00230333,43148.0,43142.0,0.469781]
[1644555390242,0.057975,43146.0,43142.0,0.469781]
[1644555390442,0.057975,43146.0,43144.0,0.323174]
[1644555390640,0.057975,43146.0,43144.0,0.369474]
[1644555390892,0.057975,43146.0,43144.0,0.527441]
[1644555390893,0.107975,43146.0,43144.0,0.527441]
[1644555391091,0.107975,43146.0,43145.0,0.25626392]
[1644555391294,0.107975,43146.0,43145.0,0.57943792]
[1644555391690,0.107975,43146.0,43145.0,0.67943792]
[1644555391895,0.107975,43146.0,43145.0,0.98206156]
[1644555393092,0.057975,43146.0,43145.0,0.98206156]
[1644555393994,0.052975,43146.0,43145.0,1.00227933]
[1644555394396,0.052975,43146.0,43145.0,0.69965569]
[1644555394834,0.052975,43146.0,43145.0,0.98449866]
[1644555396839,0.052975,43146.0,43145.0,1.00429181]
[1644555397041,0.052975,43146.0,43145.0,0.98407404]
[1644555397841,0.052975,43146.0,43145.0,1.00390894]
[1644555398043,0.052975,43146.0,43145.0,0.98411579]
[1644555398291,0.052975,43146.0,43145.0,0.69927282]
[1644555399692,0.102975,43146.0,43145.0,0.69927282]
[1644555400090,0.102975,43146.0,43145.0,0.423174]
[1644555401691,0.052975,43146.0,43145.0,0.423174]
[1644555403141,0.052975,43146.0,43145.0,0.422841]
[1644555407795,0.07413798,43148.0,43146.0,0.40514348]
[1644555407997,0.07413798,43148.0,43147.0,0.0463]
[1644555407998,0.00083857,43148.0,43147.0,0.0463]
[1644555408195,0.00057612,43148.0,43147.0,0.78595843]
[1644555408396,0.00057612,43148.0,43147.0,1.88124843]
[1644555408596,0.00026245,43153.0,43147.0,1.164762]
[1644555408895,0.057965,43148.0,43147.0,1.164762]
[1644555409396,0.057965,43148.0,43147.0,1.280686]
[1644555410042,0.057965,43148.0,43147.0,1.35983826]
[1644555410445,0.35180462,43148.0,43147.0,1.15557869]
[1644555410646,0.35180462,43148.0,43147.0,0.71648269]
[1644555410845,0.35180462,43148.0,43147.0,0.36855169]
[1644555411444,0.93822769,43148.0,43147.0,0.36855169]
[1644555412246,0.93822769,43148.0,43133.0,0.115968]
[1644555412447,0.057984,43144.0,43134.0,0.323172]
[1644555412646,0.057984,43142.0,43134.0,0.323172]
[1644555413044,0.057984,43142.0,43134.0,0.38115732]
[1644555413292,0.057984,43142.0,43135.0,0.381159]
[1644555413293,0.30329022,43141.0,43135.0,0.381159]
[1644555413490,0.30329022,43141.0,43132.0,0.14090916]
[1644555413491,0.107985,43140.0,43132.0,0.14090916]
[1644555413689,0.115973,43139.0,43136.0,0.07071896]
[1644555414288,0.114473,43139.0,43136.0,0.07071896]
[1644555414691,0.057987,43138.0,43136.0,0.12870496]
[1644555414891,0.057987,43138.0,43137.0,0.323172]
[1644555415089,0.107987,43138.0,43137.0,0.323172]
[1644555415497,0.454287,43138.0,43132.0,0.02177825]
[1644555415693,0.107993,43137.0,43132.0,0.02177825]
[1644555415894,0.0463,43136.0,43132.0,0.02177825]
[1644555416090,0.0463,43136.0,43125.0,0.02115276]
[1644555416091,0.116007,43135.0,43125.0,0.02115276]
[1644555416293,0.36697958,43130.0,43125.0,0.02115276]
[1644555416490,0.33518083,43129.0,43128.0,0.08364405]
[1644555416691,0.38518083,43129.0,43128.0,0.08364405]
[1644555417948,0.50119683,43129.0,43128.0,0.08364405]
[1644555418847,0.50119683,43129.0,43124.0,0.00172015]
[1644555419648,0.50177333,43129.0,43124.0,0.00172015]
[1644555420249,0.50177333,43129.0,43126.0,0.08888752]
[1644555420649,0.50119683,43129.0,43126.0,0.08888752]
[1644555420894,0.50177301,43129.0,43126.0,0.08888752]
[1644555421290,0.16659218,43129.0,43126.0,0.08888752]
[1644555421691,0.166016,43129.0,43126.0,0.08888752]
[1644555422792,0.46628892,43129.0,43126.0,0.08888752]
[1644555426045,0.48806717,43129.0,43126.0,0.08888752]
[1644555428046,0.50984542,43129.0,43126.0,0.08888752]
[1644555428300,0.48806717,43129.0,43126.0,0.08888752]
[1644555429997,0.50984542,43129.0,43126.0,0.08888752]
[1644555430197,0.48806717,43129.0,43126.0,0.08888752]
[1644555431799,0.48806717,43129.0,43127.0,0.323172]
[1644555431800,0.12978625,43129.0,43127.0,0.323172]
[1644555432047,0.1515645,43129.0,43126.0,0.08888752]
[1644555432346,0.12978625,43129.0,43126.0,0.08888752]
[1644555432748,0.12978625,43129.0,43127.0,0.323172]
[1644555432949,0.12978625,43129.0,43128.0,0.61137162]
[1644555433149,0.12978625,43129.0,43128.0,0.28819962]
[1644555434048,0.1515645,43129.0,43128.0,0.28819962]
[1644555434248,0.12978625,43129.0,43128.0,0.28819962]
[1644555435052,0.174011,43136.0,43129.0,1.223172]
[1644555435250,0.00057623,43131.0,43129.0,1.223172]
[1644555435450,0.00057623,43131.0,43129.0,1.323172]
[1644555435894,0.00057623,43131.0,43130.0,0.40101925]
[1644555436094,0.00057623,43131.0,43130.0,0.72419125]
[1644555436293,0.9614,43142.0,43137.0,0.33611534]
[1644555436294,0.177282,43140.0,43137.0,0.33611534]
[1644555436500,0.00230453,43139.0,43138.0,0.08591448]
[1644555436896,0.00230453,43139.0,43138.0,0.40908648]
[1644555437294,0.00230453,43139.0,43138.0,0.50908648]
[1644555437494,0.057982,43140.0,43139.0,0.323172]
[1644555437896,0.057982,43140.0,43139.0,0.1]
[1644555438195,0.057982,43140.0,43138.0,0.08591448]
[1644555438395,0.107982,43140.0,43138.0,0.08591448]
[1644555438796,0.05,43139.0,43138.0,0.08591448]
[1644555439001,0.38260242,43139.0,43138.0,0.08591448]
[1644555439296,0.08676556,43140.0,43138.0,0.08591448]
[1644555440344,0.14475256,43140.0,43138.0,0.08591448]
[1644555440746,0.05,43139.0,43138.0,0.08591448]
[1644555445295,0.05,43139.0,43131.0,0.1]
[1644555445296,0.31947745,43139.0,43131.0,0.1]
[1644555445496,0.31947745,43139.0,43122.0,0.04648435]
[1644555445497,0.057999,43136.0,43122.0,0.00018435]
[1644555445695,0.40734084,43135.0,43121.0,0.00018435]
[1644555445893,0.0463,43134.0,43121.0,0.00018435]
[1644555446093,0.25333873,43130.0,43121.0,0.20550633]
[1644555446293,0.25333873,43130.0,43122.0,0.00018435]
[1644555446294,0.30333873,43130.0,43122.0,0.00018435]
[1644555446495,0.058001,43129.0,43122.0,0.00018435]
[1644555446697,0.058003,43129.0,43122.0,0.00018435]
[1644555446893,0.058003,43129.0,43125.0,0.06553846]
[1644555447147,0.058003,43129.0,43125.0,0.36690444]
[1644555447348,0.05844825,43129.0,43125.0,0.52490444]
[1644555447548,0.11644525,43129.0,43126.0,0.323172]
[1644555447748,0.11644525,43129.0,43127.0,0.323172]
[1644555448147,0.11644525,43129.0,43127.0,0.1]
[1644555448351,0.116,43129.0,43128.0,0.323172]
[1644555448650,0.058003,43129.0,43127.0,0.1]
[1644555448850,0.058003,43129.0,43127.0,0.157996]
[1644555449252,0.058003,43129.0,43128.0,0.323172]
[1644555449849,0.058003,43129.0,43127.0,0.057996]
[1644555450350,0.058003,43129.0,43128.0,0.323172]
[1644555450551,0.058003,43129.0,43127.0,0.057996]
[1644555453293,0.116004,43129.0,43126.0,0.00018435]
[1644555453491,0.116004,43129.0,43126.0,0.058]
[1644555453690,0.116004,43129.0,43126.0,0.05818435]
[1644555454396,0.116004,43129.0,43126.0,0.00018435]
[1644555454641,0.116004,43129.0,43126.0,0.323172]
[1644555454840,0.116004,43129.0,43126.0,0.10018435]
[1644555455642,0.116004,43129.0,43127.0,0.057998]
[1644555455842,0.116004,43129.0,43127.0,0.05818235]
[1644555456344,0.116226,43129.0,43127.0,0.057998]
[1644555459693,0.116226,43129.0,43128.0,0.323172]
[1644555459890,0.116226,43129.0,43128.0,0.32335635]
[1644555460390,0.116226,43129.0,43128.0,0.00018435]
[1644555460591,0.116226,43129.0,43127.0,0.057998]
[1644555460792,0.116226,43129.0,43128.0,0.323172]
[1644555460994,0.116226,43129.0,43128.0,0.32335635]
[1644555462244,0.116226,43129.0,43128.0,0.00018435]
[1644555462442,0.116226,43129.0,43127.0,0.05818235]
[1644555463141,0.116226,43129.0,43127.0,0.057998]
[1644555463844,0.116226,43129.0,43127.0,0.0578865]
[1644555465445,0.16661784,43130.0,43127.0,0.0578865]
[1644555465897,0.116004,43129.0,43127.0,0.0578865]
[1644555468899,0.116004,43129.0,43127.0,0.05807085]
[1644555469742,0.116004,43129.0,43127.0,0.0578865]
[1644555475297,0.058003,43129.0,43127.0,0.0578865]
[1644555479857,0.30411056,43128.0,43127.0,0.0578865]
[1644555480058,0.41210956,43128.0,43126.0,0.0581824]
[1644555480258,0.41210956,43128.0,43126.0,0.057999]
[1644555480458,0.41210956,43128.0,43126.0,0.0581824]
[1644555482299,0.41210956,43128.0,43124.0,0.05971635]
[1644555482300,0.47011156,43128.0,43125.0,0.0001834]
[1644555482499,0.47011156,43128.0,43124.0,0.00172015]
[1644555482500,0.05,43126.0,43124.0,0.00190355]
[1644555482698,0.3463,43125.0,43109.0,0.19789199]
[1644555482897,0.05,43123.0,43108.0,0.19789199]
[1644555483103,0.29186197,43111.0,43107.0,0.19789199]
[1644555483302,0.29186197,43111.0,43106.0,0.40018755]
[1644555483303,0.108029,43109.0,43106.0,0.40018755]
[1644555483497,0.108029,43109.0,43106.0,0.07701555]
[1644555483899,0.166061,43109.0,43100.0,0.19789199]
[1644555484105,0.153862,43109.0,43099.0,0.001]
[1644555484547,0.27578607,43108.0,43102.0,0.0005252]
[1644555484749,0.058038,43107.0,43102.0,0.0005252]
[1644555484948,0.29045091,43106.0,43102.0,0.0005252]
[1644555485150,0.34848891,43106.0,43102.0,0.0005252]
[1644555485350,0.28628306,43105.0,43103.0,0.0698505]
[1644555485549,0.28628306,43105.0,43099.0,0.001]
[1644555485749,0.40236206,43105.0,43102.0,0.0005252]
[1644555486351,0.30561756,43103.0,43102.0,0.0005252]
[1644555486553,0.63474391,43103.0,43102.0,0.0005252]
[1644555486851,0.63474391,43103.0,43101.0,0.07217873]
[1644555487454,0.27096169,43102.0,43099.0,0.001]
[1644555487655,0.32900569,43102.0,43099.0,0.001]
[1644555488051,0.38704869,43102.0,43098.0,0.001]
[1644555488303,0.38704869,43102.0,43098.0,0.00152416]
[1644555488504,0.0463,43101.0,43098.0,0.00152416]
[1644555488700,0.0463,43101.0,43096.0,0.02]
[1644555488701,0.162393,43101.0,43096.0,0.02]
[1644555488900,0.26336939,43097.0,43096.0,0.02]
[1644555489101,0.31336939,43097.0,43095.0,0.04337]
[1644555489299,0.34225299,43097.0,43095.0,0.04337]
[1644555489501,0.38746399,43096.0,43095.0,0.04337]
[1644555489701,0.38746399,43096.0,43094.0,0.001]
[1644555489901,0.43376399,43096.0,43094.0,0.001]
[1644555490802,0.49181599,43096.0,43094.0,0.001]
[1644555491203,0.05,43095.0,43094.0,0.001]
[1644555491899,0.3454692,43095.0,43094.0,0.001]
[1644555492345,0.36421378,43095.0,43094.0,0.001]
[1644555495995,0.36421378,43095.0,43092.0,0.00152183]
[1644555495996,0.66051378,43095.0,43092.0,0.00152183]
[1644555496201,0.25,43093.0,43092.0,0.00152183]
[1644555496393,0.3963,43093.0,43088.0,0.001]
[1644555496595,0.3963,43093.0,43084.0,0.001]
[1644555496596,0.05,43090.0,43084.0,0.001]
[1644555496793,0.32675316,43089.0,43084.0,0.001]
[1644555496995,0.0463,43088.0,43084.0,0.001]
[1644555497397,0.104368,43088.0,43083.0,0.001]
[1644555497595,0.058069,43087.0,43083.0,0.001]
[1644555497795,0.0463,43086.0,43083.0,0.00018232]
[1644555497995,0.0463,43085.0,43083.0,0.00018232]
[1644555498195,0.0463,43084.0,43079.0,0.00128232]
[1644555498495,0.0463,43083.0,43079.0,0.00128232]
[1644555498895,0.29726058,43082.0,43079.0,0.00128232]
[1644555499093,0.0463,43081.0,43079.0,0.00128232]
[1644555500547,0.12310958,43081.0,43079.0,0.00128232]
[1644555501949,0.07680958,43081.0,43079.0,0.00128232]
[1644555502350,0.09555416,43081.0,43079.0,0.00128232]
[1644555502551,0.07680958,43081.0,43079.0,0.00128232]
[1644555503601,0.07680958,43081.0,43080.0,0.323172]
[1644555503909,0.07680958,43081.0,43080.0,0.42335432]
[1644555504399,0.09555416,43081.0,43080.0,0.42335432]
[1644555504805,0.03748916,43081.0,43080.0,0.42335432]
[1644555505004,0.3,43094.0,43082.0,0.323172]
[1644555505201,0.00064197,43097.0,43082.0,0.323172]
[1644555505202,0.30064197,43097.0,43083.0,0.0463]
[1644555505401,0.30064197,43097.0,43084.0,0.323172]
[1644555505705,1.11297883,43095.0,43091.0,0.058038]
[1644555505901,0.116069,43094.0,43091.0,0.058038]
[1644555506102,0.116069,43094.0,43087.0,0.00018232]
[1644555506302,0.32039825,43088.0,43087.0,0.323172]
[1644555506504,0.058042,43089.0,43087.0,0.32335432]
[1644555506702,0.058042,43089.0,43087.0,0.42335432]
[1644555507143,0.058042,43089.0,43087.0,0.77492235]
[1644555510447,0.39791244,43088.0,43087.0,0.42335432]
[1644555510644,0.44791244,43088.0,43087.0,0.42335432]
[1644555512500,0.43791244,43088.0,43087.0,0.42335432]
[1644555512700,0.04,43088.0,43087.0,0.42335432]
[1644555514302,0.04,43088.0,43087.0,0.4420989]
[1644555516468,0.04,43088.0,43087.0,0.46084348]
[1644555516768,0.04,43088.0,43087.0,0.4420989]
[1644555518400,0.04,43088.0,43087.0,0.46084348]
[1644555518599,0.04,43088.0,43087.0,0.4420989]
[1644555520402,0.04,43088.0,43087.0,0.46084348]
[1644555520601,0.04,43088.0,43087.0,0.4420989]
[1644555524449,0.04,43088.0,43087.0,0.46084348]
[1644555524650,0.04,43088.0,43087.0,0.4420989]
[1644555526505,0.04,43088.0,43087.0,0.46084348]
[1644555526704,0.04,43088.0,43087.0,0.4420989]
[1644555527706,0.05,43088.0,43087.0,0.4420989]
[1644555528107,0.10579298,43095.0,43088.0,0.05803839]
[1644555528308,0.058038,43094.0,43089.0,0.323172]
[1644555528508,0.058038,43094.0,43089.0,0.38139332]
[1644555528707,0.058038,43094.0,43089.0,0.48139332]
[1644555530156,0.058038,43094.0,43090.0,0.05803602]
[1644555530357,0.058038,43094.0,43092.0,0.058036]
[1644555530556,0.058038,43094.0,43092.0,0.381596]
[1644555530755,0.058038,43094.0,43092.0,0.38177832]
[1644555531855,0.058038,43094.0,43092.0,0.43981345]
[1644555532457,0.058038,43094.0,43092.0,0.45855803]
[1644555532759,0.058038,43094.0,43092.0,0.55855803]
[1644555535000,0.058038,43094.0,43092.0,0.57730261]
[1644555535200,0.058038,43094.0,43092.0,0.55855803]
[1644555536102,0.10579298,43095.0,43092.0,0.55855803]
[1644555536400,0.10579298,43095.0,43093.0,0.427884]
[1644555536602,0.10579298,43095.0,43093.0,0.42806632]
[1644555536799,0.10579298,43095.0,43093.0,0.52806632]
[1644555537049,0.15579298,43095.0,43093.0,0.60190735]
[1644555537549,0.21381698,43095.0,43094.0,0.24016744]
[1644555537752,0.21381698,43095.0,43094.0,0.61020976]
[1644555537953,0.21381698,43095.0,43094.0,0.38664976]
[1644555538551,0.21381698,43095.0,43094.0,0.40539434]
[1644555538751,0.10579298,43095.0,43094.0,0.45539434]
[1644555538953,0.12757135,43127.0,43101.0,0.15]
[1644555539154,0.12757135,43127.0,43115.0,0.5786]
[1644555539155,0.15043296,43120.0,43115.0,0.5786]
[1644555539351,0.001,43128.0,43118.0,0.15]
[1644555539550,0.001,43128.0,43119.0,0.36986]
[1644555539751,0.25209911,43127.0,43122.0,0.32548378]
[1644555539950,0.25209911,43127.0,43123.0,0.44396869]
[1644555539951,0.057989,43127.0,43123.0,0.44396869]
[1644555540151,0.001,43128.0,43123.0,0.55994978]
[1644555540351,0.001,43128.0,43123.0,0.65994978]
[1644555540554,0.001,43128.0,43126.0,0.15]
[1644555540805,0.001,43128.0,43127.0,0.0463]
[1644555541002,0.001,43128.0,43127.0,0.36986]
[1644555541201,0.00161278,43128.0,43127.0,0.36986]
[1644555541402,0.00161278,43128.0,43127.0,0.46986]
[1644555541601,0.00161278,43128.0,43127.0,0.1463]
[1644555542003,0.001,43128.0,43127.0,0.1463]
[1644555542405,0.001,43128.0,43127.0,0.35474491]
[1644555542603,0.001,43128.0,43127.0,0.37348949]
[1644555542803,0.001,43128.0,43127.0,0.47348949]
[1644555543002,0.001,43128.0,43127.0,0.97348949]
[1644555544405,0.001,43128.0,43127.0,1.29704949]
[1644555544651,0.001,43128.0,43127.0,0.97348949]
[1644555544849,0.001,43128.0,43127.0,1.48178478]
[1644555545452,0.001,43128.0,43127.0,1.15822478]
[1644555545856,0.00061464,43130.0,43128.0,0.32356]
[1644555546052,0.00061464,43130.0,43129.0,2.42762514]
[1644555546250,0.00061464,43130.0,43129.0,2.85118514]
[1644555546451,0.00061464,43130.0,43129.0,3.00118514]
[1644555546651,0.00061464,43130.0,43129.0,3.25590829]
[1644555546852,0.71955083,43138.0,43129.0,3.25590829]
[1644555547052,0.71955083,43138.0,43134.0,0.07125814]
[1644555547053,0.77148807,43138.0,43134.0,0.07125814]
[1644555547355,0.77148807,43138.0,43135.0,0.36986]
[1644555547555,0.77148807,43138.0,43135.0,0.0463]
[1644555547754,0.77148807,43138.0,43136.0,0.32356]
[1644555548053,0.76955083,43138.0,43137.0,0.0463]
[1644555548899,0.71955083,43138.0,43137.0,0.0463]
[1644555550100,0.76955083,43138.0,43137.0,0.0463]
[1644555550304,0.40021133,43138.0,43137.0,0.36986]
[1644555550600,0.40021133,43138.0,43137.0,0.38860458]
[1644555551499,0.40021133,43138.0,43137.0,0.06504458]
[1644555552544,0.40021133,43138.0,43137.0,0.38860458]
[1644555552745,0.40021133,43138.0,43137.0,0.50734916]
[1644555552945,0.40021133,43138.0,43137.0,0.48860458]
[1644555554147,0.05,43138.0,43137.0,0.48860458]
[1644555554546,0.472,43139.0,43137.0,0.50734916]
[1644555554747,0.472,43139.0,43137.0,0.48860458]
[1644555556608,0.472,43139.0,43137.0,0.50734916]
[1644555556801,0.472,43139.0,43137.0,0.48860458]
[1644555557200,0.472,43139.0,43137.0,0.63860458]
[1644555558403,0.47172067,43139.0,43137.0,0.63860458]
[1644555558603,0.47172067,43139.0,43137.0,0.65734916]
[1644555558806,0.42172067,43139.0,43137.0,0.65734916]
[1644555559004,0.42172067,43139.0,43138.0,0.29626537]
[1644555560151,0.47172067,43139.0,43138.0,0.48098613]
[1644555560352,0.42172067,43139.0,43138.0,0.39626537]
[1644555560555,0.47172067,43139.0,43138.0,0.58098613]
[1644555560750,0.47172067,43139.0,43138.0,0.41500995]
[1644555560954,0.47172067,43139.0,43138.0,0.11874458]
[1644555561152,0.42172067,43139.0,43138.0,0.40199457]
[1644555561357,0.057976,43140.0,43138.0,0.40199457]
[1644555561358,0.057976,43140.0,43139.0,0.32356]
[1644555561753,0.057976,43140.0,43139.0,0.42356]
[1644555562652,0.057976,43140.0,43139.0,0.44230458]
[1644555563312,0.057976,43140.0,43139.0,0.34230458]
[1644555564310,0.06391252,43146.0,43142.0,0.9]
[1644555564311,0.00026358,43146.0,43142.0,0.9]
[1644555564511,0.00257339,43148.0,43145.0,0.15]
[1644555564512,0.00126358,43147.0,43145.0,0.15]
[1644555564709,0.00126358,43147.0,43146.0,0.00513078]
[1644555564710,0.001,43147.0,43146.0,0.00513078]
[1644555564909,0.057959,43151.0,43147.0,0.96709723]
[1644555565108,0.00026254,43148.0,43147.0,0.96709723]
[1644555565308,0.01026254,43149.0,43147.0,2.00318639]
[1644555565508,0.01026254,43149.0,43148.0,0.32356]
[1644555565808,0.01,43149.0,43148.0,0.46986]
[1644555566611,0.01,43149.0,43148.0,0.7695058]
[1644555567053,0.01,43149.0,43148.0,0.58577349]
[1644555567257,0.01,43149.0,43148.0,0.46986]
[1644555567455,0.01,43149.0,43148.0,0.48860458]